bitfinex/quotes_BTCUSD_20250908
["timestamp","ask_amount","ask_price","bid_price","bid_amount"]
[1757322291646,1.46526169,111790.0,111780.0,0.0011392]
[1757322292396,0.84240229,111790.0,111780.0,0.0011392]
[1757322292582,1.46526169,111790.0,111780.0,0.0011392]
[1757322294808,0.84240229,111790.0,111780.0,0.0011392]
[1757322295016,1.46538169,111790.0,111780.0,0.0011392]
[1757322298132,0.84252229,111790.0,111780.0,0.0011392]
[1757322298341,1.46538169,111790.0,111780.0,0.0011392]
[1757322300467,1.46586853,111790.0,111780.0,0.0011392]
[1757322302572,1.48861853,111790.0,111780.0,0.0011392]
[1757322303809,1.55791214,111790.0,111780.0,1e-08]
[1757322304630,1.40819214,111790.0,111780.0,1e-08]
[1757322304830,1.55815214,111790.0,111780.0,1e-08]
[1757322305032,1.40819214,111790.0,111780.0,1e-08]
[1757322305238,0.51893889,111770.0,111760.0,0.07061212]
[1757322305444,1.04933201,111770.0,111760.0,0.07075143]
[1757322305647,1.05467201,111770.0,111760.0,0.07075143]
[1757322306075,1.08155555,111770.0,111760.0,0.00013931]
[1757322306486,1.08220476,111770.0,111760.0,0.00013931]
[1757322307674,1.08220476,111770.0,111760.0,0.00017931]
[1757322307897,1.08320476,111770.0,111760.0,0.00017931]
[1757322308310,1.08520476,111770.0,111760.0,0.00017931]
[1757322309623,1.51154387,111770.0,111760.0,0.00017931]
[1757322310930,1.14231715,111750.0,111740.0,0.07061212]
[1757322311133,1.29235715,111750.0,111740.0,0.07075156]
[1757322311309,1.29833846,111750.0,111740.0,0.07075156]
[1757322311875,1.32522612,111750.0,111740.0,0.07075156]
[1757322312078,1.32522612,111750.0,111740.0,0.00013944]
[1757322312278,1.32522612,111750.0,111740.0,0.00113944]
[1757322312494,1.32522612,111750.0,111740.0,0.00213944]
[1757322312495,1.34797612,111750.0,111740.0,0.00213944]
[1757322313309,1.43989211,111750.0,111740.0,0.00213944]
[1757322317794,1.48109431,111750.0,111740.0,0.00213944]
[1757322319099,1.48101431,111750.0,111740.0,0.00213944]
[1757322321542,1.53101431,111750.0,111740.0,0.00213944]
[1757322324068,0.07752897,111750.0,111740.0,0.00213944]
[1757322324286,0.07752897,111750.0,111740.0,0.43676402]
[1757322324497,0.22961222,111750.0,111740.0,0.34365448]
[1757322324913,0.05064131,111750.0,111740.0,0.34365448]
[1757322327507,0.05064131,111750.0,111740.0,0.6553276]
[1757322327932,0.05064131,111750.0,111740.0,0.67626642]
[1757322328361,0.05064131,111750.0,111740.0,0.70314372]
[1757322328573,0.00064131,111750.0,111740.0,0.70314372]
[1757322329068,0.00064131,111750.0,111740.0,0.70214372]
[1757322329970,0.00064131,111750.0,111740.0,0.70114372]
[1757322330408,0.00064131,111750.0,111740.0,0.6325316]
[1757322330725,0.00064131,111750.0,111740.0,1.0345316]
[1757322331803,0.00064131,111750.0,111740.0,1.3745316]
[1757322333400,0.00064131,111750.0,111740.0,1.6377316]
[1757322335055,0.00064131,111750.0,111740.0,1.7875716]
[1757322338750,0.00064131,111750.0,111740.0,1.7875316]
[1757322340533,0.00064131,111750.0,111740.0,2.12674019]
[1757322340760,0.20576651,111800.0,111790.0,0.17890687]
[1757322340761,0.17889087,111800.0,111790.0,0.17890687]
[1757322341171,0.17889087,111800.0,111790.0,0.32870687]
[1757322341715,0.22889087,111800.0,111790.0,0.32870687]
[1757322342080,0.23189087,111800.0,111790.0,0.32870687]
[1757322342292,0.053,111800.0,111790.0,0.32870687]
[1757322342507,0.23189087,111800.0,111790.0,0.32870687]
[1757322343129,0.053,111800.0,111790.0,0.32870687]
[1757322343546,0.23289087,111800.0,111790.0,0.32866687]
[1757322343936,0.23289087,111800.0,111780.0,0.24766838]
[1757322344282,0.23612087,111800.0,111790.0,0.32866687]
[1757322344390,0.23312087,111800.0,111790.0,0.32866687]
[1757322344920,0.23512087,111800.0,111790.0,0.32866687]
[1757322345325,0.23412087,111800.0,111790.0,0.32866687]
[1757322345536,0.23412087,111800.0,111790.0,0.14976]
[1757322345856,0.17890687,111790.0,111780.0,0.33958437]
[1757322346059,0.18213687,111790.0,111780.0,0.33958437]
[1757322346257,0.17890687,111790.0,111780.0,0.48934437]
[1757322347447,0.49057999,111790.0,111780.0,0.48931887]
[1757322347648,0.49380999,111790.0,111780.0,0.48931887]
[1757322348117,0.17892288,111780.0,111760.0,0.06876]
[1757322348339,0.17893889,111770.0,111760.0,0.33961953]
[1757322348562,0.17893889,111770.0,111760.0,0.48933953]
[1757322349452,0.493826,111780.0,111760.0,0.48933953]
[1757322350126,0.17893889,111770.0,111760.0,0.34161953]
[1757322350329,0.493826,111780.0,111760.0,0.49133953]
[1757322350568,0.17893889,111770.0,111760.0,0.48933953]
[1757322350817,0.17893889,111770.0,111760.0,0.49133953]
[1757322351052,0.17893889,111770.0,111760.0,0.48933953]
[1757322351763,0.493826,111780.0,111760.0,0.48933953]
[1757322352004,0.17893889,111770.0,111760.0,0.48933953]
[1757322352981,0.17893889,111770.0,111760.0,0.33961953]
[1757322353199,0.493826,111780.0,111760.0,0.48929953]
[1757322353399,0.493826,111780.0,111760.0,0.49129953]
[1757322353778,0.17893889,111770.0,111760.0,0.34161953]
[1757322353983,0.493826,111780.0,111760.0,0.49129953]
[1757322354194,0.493826,111780.0,111770.0,0.17893889]
[1757322354607,0.493826,111780.0,111770.0,0.32861889]
[1757322355179,0.493826,111780.0,111770.0,0.14968]
[1757322355946,0.493826,111780.0,111770.0,0.32861889]
[1757322356355,0.543826,111780.0,111770.0,0.32861889]
[1757322356701,0.545976,111780.0,111770.0,0.14968]
[1757322357123,0.17893889,111770.0,111760.0,0.33963089]
[1757322357346,0.17893889,111770.0,111760.0,0.48927089]
[1757322357347,0.49358201,111770.0,111760.0,0.48927089]
[1757322357579,0.49573201,111770.0,111760.0,0.48927089]
[1757322358268,0.49573201,111770.0,111760.0,0.2184]
[1757322358464,0.1789549,111760.0,111750.0,0.35694761]
[1757322358686,0.1819249,111760.0,111750.0,0.59864304]
[1757322359342,0.49574802,111760.0,111750.0,0.50026166]
[1757322359942,0.49574802,111760.0,111750.0,0.00013944]
[1757322360363,0.8075535,111760.0,111750.0,0.14977944]
[1757322360782,0.8075535,111760.0,111750.0,0.15177944]
[1757322361010,0.4958142,111760.0,111750.0,0.15177944]
[1757322361233,0.4958142,111760.0,111750.0,0.14977944]
[1757322361680,0.4958142,111760.0,111750.0,0.32875035]
[1757322362133,0.4968142,111760.0,111750.0,0.18211035]
[1757322362338,0.4968142,111760.0,111750.0,0.33179035]
[1757322362794,0.4968142,111760.0,111750.0,0.15281944]
[1757322363004,0.4968142,111760.0,111750.0,0.00313944]
[1757322363222,0.4968142,111760.0,111750.0,0.15281944]
[1757322363423,0.4968142,111760.0,111750.0,0.33179035]
[1757322363786,0.4958142,111760.0,111750.0,0.33179035]
[1757322364171,0.4916942,111760.0,111750.0,0.32879035]
[1757322364582,0.4968142,111760.0,111750.0,0.32879035]
[1757322366605,0.4978142,111760.0,111750.0,0.32879035]
[1757322368285,0.4978142,111760.0,111750.0,0.14981944]
[1757322368479,0.4978142,111760.0,111750.0,0.32879035]
[1757322369862,0.4926942,111760.0,111750.0,0.32879035]
[1757322370309,0.4956642,111760.0,111750.0,0.32879035]
[1757322370931,0.4978142,111760.0,111750.0,0.14981944]
[1757322371540,0.1860749,111760.0,111750.0,0.32879035]
[1757322371945,0.4978142,111760.0,111750.0,0.32879035]
[1757322373845,0.002,111760.0,111750.0,0.32879035]
[1757322374048,0.3137393,111760.0,111750.0,0.32879035]
[1757322375293,0.4926942,111760.0,111750.0,0.32879035]
[1757322375916,0.3637393,111760.0,111750.0,0.32879035]
[1757322376115,0.052,111760.0,111750.0,0.32879035]
[1757322376293,0.3637393,111760.0,111750.0,0.32879035]
[1757322376806,0.5426942,111760.0,111750.0,0.32879035]
[1757322377140,0.5456642,111760.0,111750.0,0.32879035]
[1757322377800,0.3667093,111760.0,111750.0,0.32879035]
[1757322378638,0.3637393,111760.0,111750.0,0.32879035]
[1757322380458,0.5426942,111760.0,111750.0,0.32879035]
[1757322382360,0.3637393,111760.0,111750.0,0.32879035]
[1757322382550,0.052,111760.0,111750.0,0.73244564]
[1757322383126,0.052,111760.0,111750.0,0.42070634]
[1757322383550,0.051,111760.0,111750.0,0.42070634]
[1757322384113,0.3637393,111760.0,111750.0,0.42070634]
[1757322384625,0.052,111760.0,111750.0,0.42070634]
[1757322384784,0.051,111760.0,111750.0,0.42070634]
[1757322385768,0.05,111760.0,111750.0,0.42070634]
[1757322386176,0.051,111760.0,111750.0,0.42070634]
[1757322390315,0.051,111760.0,111750.0,0.73244564]
[1757322394487,0.2299549,111760.0,111750.0,0.73244564]
[1757322395081,0.2299549,111760.0,111750.0,0.58276564]
[1757322395291,0.5436742,111760.0,111750.0,0.42066634]
[1757322395500,0.5468342,111760.0,111750.0,0.42066634]
[1757322395711,0.5468342,111760.0,111750.0,0.24169543]
[1757322396125,0.2350949,111760.0,111750.0,0.24169543]
[1757322396328,0.5468342,111760.0,111750.0,0.24169543]
[1757322396943,0.5468342,111760.0,111750.0,0.09205543]
[1757322397148,0.5468342,111760.0,111750.0,0.00013944]
[1757322397357,0.5468342,111760.0,111750.0,0.14977944]
[1757322397683,0.5416942,111760.0,111750.0,0.32875035]
[1757322397898,0.2299549,111760.0,111750.0,0.32875035]
[1757322398105,0.051,111760.0,111750.0,0.32875035]
[1757322398311,0.051,111760.0,111750.0,0.73240564]
[1757322398946,0.051,111760.0,111750.0,1.06508376]
[1757322399166,0.001,111760.0,111750.0,1.46864777]
[1757322399579,0.001,111760.0,111750.0,1.86864777]
[1757322400412,0.49959151,111790.0,111770.0,0.17892424]
[1757322400629,0.50275151,111790.0,111780.0,0.14964]
[1757322401699,0.18785221,111790.0,111780.0,0.14964]
[1757322401912,0.50059151,111790.0,111780.0,0.14964]
[1757322402340,0.49959151,111790.0,111780.0,0.14964]
[1757322402582,0.50473151,111790.0,111780.0,0.14964]
[1757322404103,0.50773151,111790.0,111780.0,0.14964]
[1757322405030,0.50773151,111790.0,111780.0,0.32856288]
[1757322405369,0.50773151,111790.0,111780.0,0.14964]
[1757322406775,0.50773151,111790.0,111780.0,0.32856288]
[1757322407342,0.50773151,111790.0,111780.0,0.14964]
[1757322410135,0.50773151,111790.0,111780.0,0.14964]
[1757322415355,0.50773151,111790.0,111780.0,0.32856288]
[1757322416501,0.50575151,111790.0,111780.0,0.32856288]
[1757322418315,0.50785151,111790.0,111780.0,0.32856288]
[1757322418783,0.50785151,111790.0,111780.0,0.14964]
[1757322419879,0.17892288,111780.0,111770.0,0.49066354]
[1757322420085,0.17892288,111780.0,111770.0,0.42044023]
[1757322422120,0.17992288,111780.0,111770.0,0.42044023]
[1757322422306,0.18092288,111780.0,111770.0,0.42044023]
[1757322423022,0.18092288,111780.0,111770.0,0.09191599]
[1757322423240,0.18596288,111780.0,111770.0,0.24151599]
[1757322423663,0.18596288,111780.0,111770.0,0.42045488]
[1757322423893,0.18596288,111780.0,111770.0,0.09191599]
[1757322424108,0.18596288,111780.0,111770.0,0.24151599]
[1757322424290,0.18596288,111780.0,111770.0,0.42045488]
[1757322424943,0.18596288,111780.0,111770.0,0.09191599]
[1757322425163,0.17893889,111770.0,111750.0,0.17911035]
[1757322425381,0.49047004,111770.0,111760.0,0.1496]
[1757322425614,0.49257004,111770.0,111760.0,0.1496]
[1757322425791,0.1789549,111760.0,111750.0,0.00013944]
[1757322426079,0.49048605,111760.0,111750.0,0.14973944]
[1757322426297,0.49258605,111760.0,111750.0,0.14973944]
[1757322426510,0.49552605,111760.0,111750.0,0.14973944]
[1757322427179,0.49552605,111760.0,111750.0,0.32871035]
[1757322427389,0.49552605,111760.0,111750.0,0.00013944]
[1757322427601,0.64512605,111760.0,111750.0,0.14973944]
[1757322428668,0.64512605,111760.0,111750.0,0.15073944]
[1757322428902,0.65394438,111760.0,111750.0,0.15073944]
[1757322429515,0.65394438,111760.0,111750.0,0.15173944]
[1757322430316,0.65394438,111760.0,111750.0,0.33071035]
[1757322430471,0.65394438,111760.0,111750.0,0.15173944]
[1757322431944,0.50434438,111760.0,111750.0,0.15173944]
[1757322434165,0.19281323,111760.0,111750.0,0.15173944]
[1757322434326,0.50434438,111760.0,111750.0,0.15173944]
[1757322435854,0.50434438,111760.0,111750.0,0.00213944]
[1757322436079,0.50434438,111760.0,111750.0,0.18111035]
[1757322438204,0.19281323,111760.0,111750.0,0.18111035]
[1757322438329,0.50434438,111760.0,111750.0,0.18111035]
[1757322441405,0.65394438,111760.0,111750.0,0.18111035]
[1757322442624,0.50434438,111760.0,111750.0,0.18111035]
[1757322442835,0.65394438,111760.0,111750.0,0.18111035]
[1757322444256,0.34241323,111760.0,111750.0,0.18111035]
[1757322444459,0.65394438,111760.0,111750.0,0.18111035]
[1757322447890,0.19281323,111760.0,111750.0,0.18111035]
[1757322448111,0.65390438,111760.0,111750.0,0.18111035]
[1757322449167,0.34027323,111760.0,111750.0,0.18111035]
[1757322449411,0.65180438,111760.0,111750.0,0.18111035]
[1757322449618,0.65391438,111760.0,111750.0,0.18111035]
[1757322450504,0.17893889,111770.0,111750.0,0.4926415]
[1757322450683,0.33425481,111770.0,111750.0,0.18111035]
[1757322450936,0.33145889,111770.0,111750.0,0.18111035]
[1757322451275,0.64299004,111770.0,111750.0,0.18111035]
[1757322451478,0.1789549,111760.0,111750.0,0.18111035]
[1757322452693,0.1789549,111760.0,111750.0,0.18011035]
[1757322453130,0.1789549,111760.0,111750.0,0.17911035]
[1757322453293,0.18189889,111770.0,111750.0,0.17911035]
[1757322453487,0.33145889,111770.0,111750.0,0.17911035]
[1757322453748,0.32849889,111770.0,111760.0,0.1789549]
[1757322453947,0.17893889,111770.0,111760.0,0.3285149]
[1757322454146,0.14956,111770.0,111760.0,0.64004605]
[1757322454409,0.17893889,111770.0,111760.0,0.3285149]
[1757322454614,0.34954234,111780.0,111760.0,0.42043089]
[1757322454788,0.34954234,111780.0,111770.0,0.17893889]
[1757322454955,0.35165234,111780.0,111770.0,0.17893889]
[1757322455160,0.28349088,111790.0,111770.0,0.17893889]
[1757322455400,0.19081221,111790.0,111780.0,0.17892288]
[1757322455598,0.00296,111790.0,111780.0,0.32848288]
[1757322455800,0.14956,111790.0,111780.0,0.32848288]
[1757322457001,0.50232656,111800.0,111790.0,0.17890687]
[1757322457002,0.34916678,111800.0,111790.0,0.17890687]
[1757322457207,0.35127678,111800.0,111790.0,0.17890687]
[1757322457955,0.18783541,111800.0,111790.0,0.17890687]
[1757322458163,0.40914448,111810.0,111790.0,0.27082286]
[1757322458387,0.17889087,111800.0,111790.0,0.27082286]
[1757322459066,0.18185087,111800.0,111790.0,0.27082286]
[1757322459384,0.18396087,111800.0,111790.0,0.27082286]
[1757322459598,0.18596087,111800.0,111790.0,0.27082286]
[1757322459809,0.19496432,111800.0,111790.0,0.27082286]
[1757322460018,0.19296432,111800.0,111790.0,0.27082286]
[1757322460244,0.18185087,111800.0,111790.0,0.27082286]
[1757322460467,0.18285087,111800.0,111790.0,0.27082286]
[1757322460943,0.18485087,111800.0,111790.0,0.27082286]
[1757322461388,0.23285087,111800.0,111790.0,0.27082286]
[1757322461836,0.23385087,111800.0,111790.0,0.27082286]
[1757322462073,0.23596087,111800.0,111790.0,0.09191599]
[1757322462305,0.052,111800.0,111790.0,0.94329283]
[1757322462511,0.002,111800.0,111790.0,1.09345283]
[1757322462723,0.002,111800.0,111790.0,0.94329283]
[1757322462932,0.002,111800.0,111790.0,0.84548569]
[1757322463172,0.002,111800.0,111790.0,1.15701684]
[1757322463325,0.001,111800.0,111790.0,1.09345283]
[1757322463760,0.001,111800.0,111790.0,1.16159879]
[1757322464297,0.001,111800.0,111790.0,1.09803478]
[1757322464538,0.00013916,111810.0,111800.0,0.19982969]
[1757322464749,0.00013916,111810.0,111800.0,0.67203683]
[1757322466733,0.00013916,111810.0,111800.0,0.82227683]
[1757322466936,0.00013916,111810.0,111800.0,1.47380798]
[1757322467164,0.00013916,111810.0,111800.0,1.50066969]
[1757322467379,0.00013916,111810.0,111800.0,1.35042969]
[1757322467592,0.00013916,111810.0,111800.0,1.50070969]
[1757322468532,0.00013916,111810.0,111800.0,1.50170969]
[1757322468742,0.00013916,111810.0,111800.0,1.35142969]
[1757322468960,0.00013916,111810.0,111800.0,1.50170969]
[1757322469394,0.00013916,111810.0,111800.0,1.90070969]
[1757322471031,0.00013916,111810.0,111800.0,1.92817211]
[1757322471624,0.0005744,111820.0,111810.0,0.53981369]
[1757322471859,0.0002,111850.0,111840.0,0.17882689]
[1757322472067,0.0002,111850.0,111840.0,0.42094288]
[1757322472068,0.00066427,111850.0,111840.0,0.42094288]
[1757322472275,0.00066427,111850.0,111840.0,0.73247403]
[1757322472664,0.00066427,111850.0,111840.0,0.42094288]
[1757322472901,0.00066427,111850.0,111840.0,0.27074288]
[1757322473346,0.00066427,111850.0,111840.0,0.42090288]
[1757322473731,0.00066427,111850.0,111840.0,0.73243403]
[1757322474158,0.00166427,111850.0,111840.0,0.73243403]
[1757322474366,0.00166427,111850.0,111840.0,0.42090288]
[1757322474575,0.00166427,111850.0,111840.0,0.73243403]
[1757322475864,0.00366427,111850.0,111840.0,0.73243403]
[1757322476379,0.00366427,111850.0,111840.0,0.58227403]
[1757322476586,0.00366427,111850.0,111840.0,0.42086288]
[1757322477633,0.49925632,111850.0,111830.0,0.02685733]
[1757322477846,0.18204689,111840.0,111830.0,0.24203599]
[1757322478062,0.18204689,111840.0,111830.0,0.42087887]
[1757322478660,0.17882689,111840.0,111830.0,0.42087887]
[1757322480968,0.18407689,111840.0,111830.0,0.24203599]
[1757322481172,0.18204689,111840.0,111830.0,0.27075887]
[1757322481411,0.17882689,111840.0,111830.0,0.42083887]
[1757322482793,0.17882689,111840.0,111830.0,0.09191599]
[1757322483015,0.18204689,111840.0,111830.0,0.42079887]
[1757322483265,0.49002958,111840.0,111830.0,0.42079887]
[1757322483843,0.49002958,111840.0,111830.0,0.42083887]
[1757322484224,0.18204689,111840.0,111830.0,0.42083887]
[1757322484419,0.49002958,111840.0,111830.0,0.42083887]
[1757322484633,0.17882689,111840.0,111830.0,0.42083887]
[1757322484851,0.49002958,111840.0,111830.0,0.42083887]
[1757322485078,0.49324958,111840.0,111830.0,0.42083887]
[1757322485313,0.49527958,111840.0,111830.0,0.09195599]
[1757322485504,0.49527958,111840.0,111830.0,0.24195599]
[1757322485675,0.49002958,111840.0,111830.0,0.24195599]
[1757322486494,0.80648227,111840.0,111830.0,4e-05]
[1757322486714,0.95644227,111840.0,111830.0,4e-05]
[1757322487894,0.17889087,111800.0,111790.0,0.02686457]
[1757322488098,0.80129625,111800.0,111790.0,0.09191599]
[1757322488478,0.49534356,111800.0,111790.0,0.09191599]
[1757322489340,0.49534356,111800.0,111790.0,0.09205515]
[1757322490915,0.59462291,111820.0,111790.0,0.58223471]
[1757322490916,0.27447728,111820.0,111790.0,0.58223471]
[1757322491128,0.2057294,111820.0,111810.0,0.49007756]
[1757322491339,0.17885888,111820.0,111810.0,0.58206355]
[1757322492921,0.17885888,111820.0,111810.0,0.27086086]
[1757322493127,0.18207888,111820.0,111810.0,0.27086086]
[1757322493653,0.18207888,111820.0,111810.0,0.09198599]
[1757322493861,0.18207888,111820.0,111810.0,0.27086086]
[1757322495960,0.17885888,111820.0,111810.0,0.27086086]
[1757322496367,0.18207888,111820.0,111810.0,0.27086086]
[1757322497312,0.18207888,111820.0,111810.0,0.09198599]
[1757322498192,0.18207888,111820.0,111810.0,0.27086086]
[1757322498779,0.49328157,111820.0,111810.0,0.27086086]
[1757322498976,0.49328157,111820.0,111810.0,0.09198599]
[1757322499179,0.49328157,111820.0,111810.0,0.27086086]
[1757322500052,0.49531157,111820.0,111810.0,0.09198599]
[1757322500923,0.49531157,111820.0,111810.0,0.27086086]
[1757322501119,0.5022267,111830.0,111810.0,0.27086086]
[1757322501327,0.49897092,111840.0,111820.0,0.42093487]
[1757322501550,0.64917092,111840.0,111830.0,0.17891288]
[1757322501769,0.32014403,111840.0,111830.0,0.27082887]
[1757322501969,0.19115144,111850.0,111830.0,0.27082887]
[1757322502292,0.31120269,111840.0,111830.0,0.27082887]
[1757322502732,0.00046427,111840.0,111830.0,0.27086887]
[1757322502946,0.31166696,111840.0,111830.0,0.27086887]
[1757322503156,0.31166696,111840.0,111830.0,0.27082887]
[1757322503367,0.49049385,111840.0,111830.0,0.27082887]
[1757322504778,0.17929116,111840.0,111830.0,0.27082887]
[1757322504967,0.49049385,111840.0,111830.0,0.27082887]
[1757322505976,0.49049385,111840.0,111830.0,0.27182887]
[1757322506177,0.49585385,111840.0,111830.0,0.24307599]
[1757322506424,0.49585385,111840.0,111830.0,0.09391599]
[1757322506636,0.49585385,111840.0,111830.0,0.24403599]
[1757322506849,0.18465116,111840.0,111830.0,0.24403599]
[1757322507064,0.49585385,111840.0,111830.0,0.24403599]
[1757322507669,0.80705654,111840.0,111830.0,0.24403599]
[1757322508608,0.80705654,111840.0,111830.0,0.42287887]
[1757322510172,0.49585385,111840.0,111830.0,0.42287887]
[1757322510578,0.49585385,111840.0,111830.0,0.24403599]
[1757322510826,0.80705654,111840.0,111830.0,0.24395599]
[1757322511002,0.80705654,111840.0,111830.0,0.09391599]
[1757322516119,0.49049385,111840.0,111830.0,0.27282887]
[1757322517705,0.49027096,111880.0,111830.0,0.27282887]
[1757322517706,0.04850293,111920.0,111890.0,0.17874698]
[1757322517921,0.08043163,111950.0,111920.0,0.36093882]
[1757322517922,0.00020001,111950.0,111920.0,0.36093882]
[1757322518134,0.0002,111950.0,111940.0,0.19473287]
[1757322518334,0.00033941,111950.0,111940.0,1.0196656]
[1757322518542,0.00033941,111950.0,111940.0,1.05347865]
[1757322518772,0.65546393,111960.0,111950.0,0.53959]
[1757322518983,0.65546393,111960.0,111950.0,1.32392994]
[1757322519200,0.63660464,111960.0,111950.0,1.29210548]
[1757322519410,0.63706854,111960.0,111950.0,1.2927733]
[1757322519832,0.63706854,111960.0,111950.0,1.35135436]
[1757322520038,0.63706854,111960.0,111950.0,1.32761161]
[1757322520264,0.63706854,111960.0,111950.0,1.08819702]
[1757322520464,0.63706854,111960.0,111950.0,1.1046509]
[1757322520465,0.62634155,111960.0,111950.0,1.1046509]
[1757322520707,0.62634155,111960.0,111950.0,1.11272876]
[1757322520923,0.62634155,111960.0,111950.0,1.11572876]
[1757322521358,0.62634155,111960.0,111950.0,1.14695686]
[1757322522134,0.62634155,111960.0,111950.0,1.12332051]
[1757322522668,0.62634155,111960.0,111950.0,1.10686663]
[1757322523069,0.62634155,111960.0,111950.0,1.10986663]
[1757322524337,0.62634155,111960.0,111950.0,0.70986663]
[1757322524826,0.62634155,111960.0,111950.0,0.30961904]
[1757322524827,1.11079427,111960.0,111950.0,0.30961904]
[1757322525049,1.43404699,111960.0,111950.0,0.19087901]
[1757322525502,1.45670699,111960.0,111950.0,0.01222783]
[1757322525711,1.45670699,111960.0,111950.0,0.19087901]
[1757322526134,0.94959427,111960.0,111950.0,0.282795]
[1757322526368,1.10527427,111960.0,111950.0,0.279795]
[1757322526580,1.42852699,111960.0,111950.0,0.276795]
[1757322526787,1.42852699,111960.0,111950.0,0.278795]
[1757322526957,1.10527427,111960.0,111950.0,0.278795]
[1757322527222,1.42852699,111960.0,111950.0,0.276795]
[1757322527463,1.10527427,111960.0,111950.0,0.277795]
[1757322527716,1.10527427,111960.0,111950.0,0.433475]
[1757322528687,1.10743427,111960.0,111950.0,0.433475]
[1757322528922,1.10743427,111960.0,111950.0,0.277795]
[1757322528923,1.11063427,111960.0,111950.0,0.277795]
[1757322531288,2.02688221,111960.0,111950.0,0.00397783]
[1757322531504,0.17867304,111940.0,111930.0,0.02093882]
[1757322531714,0.06864,111950.0,111940.0,0.17866714]
[1757322531925,0.47877272,111950.0,111940.0,0.27258313]
[1757322532568,0.6574239,111950.0,111940.0,0.27258313]
[1757322532982,0.5019039,111950.0,111940.0,0.09391599]
[1757322533207,0.6573839,111950.0,111940.0,0.09391599]
[1757322534794,0.6594839,111950.0,111940.0,0.09391599]
[1757322535002,0.6593639,111950.0,111940.0,0.09391599]
[1757322535543,0.6635039,111950.0,111940.0,0.09191599]
[1757322535765,0.5081439,111950.0,111940.0,0.09191599]
[1757322536172,0.7134639,111950.0,111940.0,0.09391599]
[1757322537600,0.051,111950.0,111940.0,0.29662195]
[1757322537811,0.051,111950.0,111940.0,0.31552042]
[1757322537997,0.001,111950.0,111940.0,0.31552042]
[1757322539500,0.001,111950.0,111940.0,0.33193667]
[1757322539706,0.32425272,111950.0,111940.0,0.32883667]
[1757322539916,0.32325272,111950.0,111940.0,0.48411667]
[1757322540228,0.32325272,111950.0,111940.0,0.48511667]
[1757322540663,0.32325272,111950.0,111940.0,0.48821667]
[1757322541144,0.32325272,111950.0,111940.0,0.51185302]
[1757322541349,0.31487022,111950.0,111940.0,0.51185302]
[1757322542433,0.49717593,111950.0,111940.0,0.50859302]
[1757322543248,0.49717593,111950.0,111940.0,0.54652371]
[1757322543456,0.49717593,111950.0,111940.0,0.54962371]
[1757322544083,0.80497734,111960.0,111950.0,0.17865118]
[1757322544298,1.30425327,111960.0,111950.0,0.15914292]
[1757322544512,1.30425327,111960.0,111950.0,0.15714292]
[1757322544720,1.30739327,111960.0,111950.0,0.04148839]
[1757322544931,1.33175327,111960.0,111950.0,0.04148839]
[1757322545136,1.38175327,111960.0,111950.0,0.04148839]
[1757322545344,1.38175327,111960.0,111950.0,0.03531472]
[1757322546127,1.38175327,111960.0,111950.0,0.05905326]
[1757322547142,1.38175327,111960.0,111950.0,0.11470728]
[1757322548075,1.38275327,111960.0,111950.0,0.11470728]
[1757322549156,1.38275327,111960.0,111950.0,0.09580881]
[1757322549388,1.38275327,111960.0,111950.0,0.114921]
[1757322549604,1.38275327,111960.0,111950.0,0.07476311]
[1757322549605,1.79139327,111960.0,111950.0,0.07476311]
[1757322549824,1.79139327,111960.0,111950.0,0.04300609]
[1757322550030,0.51865118,111950.0,111940.0,0.05565092]
[1757322550217,1.19804711,111950.0,111940.0,0.05565092]
[1757322550446,1.20014711,111950.0,111940.0,0.05565092]
[1757322550660,1.20014711,111950.0,111940.0,0.0238939]
[1757322551738,1.20010711,111950.0,111940.0,0.0238939]
[1757322551947,0.33539118,111950.0,111940.0,0.0268939]
[1757322552163,0.83046711,111950.0,111940.0,0.05865092]
[1757322552387,0.83046711,111950.0,111940.0,0.2610597]
[1757322552738,0.17865118,111950.0,111940.0,0.2610597]
[1757322552950,0.92361734,111960.0,111940.0,0.35607569]
[1757322553154,0.92361734,111960.0,111950.0,0.07939256]
[1757322553352,1.57749327,111960.0,111950.0,0.08139256]
[1757322553571,1.50885327,111960.0,111950.0,0.08139256]
[1757322554200,1.51199327,111960.0,111950.0,0.04963554]
[1757322554417,1.51199327,111960.0,111950.0,0.04763554]
[1757322555025,1.50885327,111960.0,111950.0,0.04963554]
[1757322555233,1.01167734,111960.0,111950.0,0.04963554]
[1757322555446,1.01581734,111960.0,111950.0,0.04963554]
[1757322555678,1.51299327,111960.0,111950.0,0.04763554]
[1757322556636,1.51299327,111960.0,111950.0,0.22628672]
[1757322556851,1.17661748,111960.0,111950.0,0.22828672]
[1757322557062,0.67734155,111960.0,111950.0,0.27256717]
[1757322557271,1.27891748,111960.0,111950.0,0.27256717]
[1757322557470,1.4575527,111960.0,111950.0,0.27256717]
[1757322557672,1.27891748,111960.0,111950.0,0.27256717]
[1757322557924,1.4575527,111960.0,111950.0,0.27256717]
[1757322558068,1.27891748,111960.0,111950.0,0.27256717]
[1757322558241,0.95937677,111960.0,111950.0,0.27256717]
[1757322558457,1.4565527,111960.0,111950.0,0.27256717]
[1757322558880,1.4575527,111960.0,111950.0,0.27256717]
[1757322559123,1.4565527,111960.0,111950.0,0.27256717]
[1757322559788,0.95937677,111960.0,111950.0,0.27256717]
[1757322560009,1.4565527,111960.0,111950.0,0.27256717]
[1757322560453,1.4565527,111960.0,111950.0,0.42688717]
[1757322560898,1.4565527,111960.0,111950.0,0.42788717]
[1757322563060,1.4585727,111960.0,111950.0,0.42788717]
[1757322563923,1.4565527,111960.0,111950.0,0.27356717]
[1757322564153,1.4615027,111960.0,111950.0,0.09291599]
[1757322564410,1.4615027,111960.0,111950.0,0.27363717]
[1757322564737,1.4615027,111960.0,111950.0,0.09498599]
[1757322564932,1.4615027,111960.0,111950.0,0.27363717]
[1757322565152,1.4615027,111960.0,111950.0,0.32153973]
[1757322565770,0.95937677,111960.0,111950.0,0.14288855]
[1757322566035,1.4615027,111960.0,111950.0,0.32153973]
[1757322566443,0.96432677,111960.0,111950.0,0.32153973]
[1757322566649,1.4565527,111960.0,111950.0,0.32153973]
[1757322567344,1.4585727,111960.0,111950.0,0.32153973]
[1757322567536,1.4565527,111960.0,111950.0,0.32153973]
[1757322573310,1.4585727,111960.0,111950.0,0.32153973]
[1757322573523,1.4615027,111960.0,111950.0,0.14288855]
[1757322574615,1.4615027,111960.0,111950.0,0.14081855]
[1757322575226,1.4615027,111960.0,111950.0,0.31946973]
[1757322576353,1.4615027,111960.0,111950.0,0.14081855]
[1757322576765,1.4615027,111960.0,111950.0,0.31946973]
[1757322577186,1.4615027,111960.0,111950.0,0.14081855]
[1757322580132,1.4615027,111960.0,111950.0,0.08084581]
[1757322580349,1.4856727,111960.0,111950.0,0.05691409]
[1757322580564,1.4856727,111960.0,111950.0,0.02497084]
[1757322580772,1.5356727,111960.0,111950.0,0.02497084]
[1757322581185,1.5356727,111960.0,111950.0,0.05691409]
[1757322582136,1.62758869,111960.0,111950.0,0.02497084]